[Event "Niedersachsen-ch B 2024"]
[Site "Verden Aller"]
[Date "2024.01.07"]
[Round "7.3"]
[White "Kraeuter, Paavo Alexander"]
[Black "Schoene, Finn"]
[Result "1-0"]
[ECO "A85"]
[WhiteElo "1832"]
[BlackElo "1626"]
[Annotator "NA RC"]
[PlyCount "39"]
[EventDate "2024.01.01"]
[EventType "swiss"]
[EventCountry "GER"]
[SourceTitle "playchess.com"]
[Source "ChessBase"]
[SourceQuality "1"]
[TimeControl "40/5400+30:1800+30"]

1. d4 {[%emt 0:00:02]} d5 {[%emt 0:00:06]} 2. c4 {[%emt 0:00:04]} e6 {[%emt 0:00:04]} 3. Nf3 {[%emt 0:00:04]} c6 {[%emt 0:00:03]} 4. e3 {[%emt 0:00:07]} f5 {[%emt 0:00:06]} 5. Be2 {[%emt 0:00:23]} Nf6 {[%emt 0:00:11]} 6. Nc3 {[%emt 0:01:08]} Be7 {[%emt 0:00:24]} 7. O-O {[%emt 0:00:47]} O-O {[%emt 0:00:08]} 8. b3 {[%emt 0:00:33]} Ne4 {[%emt 0:01:01]} 9. Bb2 {[%emt 0:00:28]} Nd7 {[%emt 0:01:09]} 10. Ne5 {[%emt 0:08:36]} Bd6 {[%emt 0:04:37]} 11. f4 {[%emt 0:01:40]} Rf6 {[%emt 0:03:21]} 12. Nxe4 {[%emt 1:22:38]} fxe4 {[%emt 0:00:35]} 13. c5 {[%emt 0:00:00]} Bc7 {[%emt 0:06:15]} 14. Bc3 {[%emt 0:00:00]} Nf8 {[%emt 0:11:16]} 15. Be1 {[%emt 0:00:00]} Bxe5 {[%emt 0:18:09]} 16. fxe5 {[%emt 0:00:00]} Rxf1+ {[%emt 0:00:05]} 17. Bxf1 {[%emt 0:00:00]} Qg5 {[%emt 0:00:08]} 18. Bf2 {[%emt 0:00:00]} Ng6 {[%emt 0:02:40]} 19. Qe1 {[%emt 0:00:00]} Ne7 {[%emt 0:02:25]} 20. Bh4 {[%emt 0:00:00]} 1-0

[Event "Niedersachsen-ch B 2024"]
[Site "Verden Aller"]
[Date "2024.01.07"]
[Round "7.4"]
[White "Kewe, Stefan"]
[Black "Walther, Jonas"]
[Result "1-0"]
[ECO "E62"]
[WhiteElo "1737"]
[BlackElo "1744"]
[Annotator "NA RC"]
[PlyCount "113"]
[EventDate "2024.01.01"]
[EventType "swiss"]
[EventCountry "GER"]
[SourceTitle "playchess.com"]
[Source "ChessBase"]
[SourceQuality "1"]
[TimeControl "40/5400+30:1800+30"]

1. d4 {[%emt 0:00:03]} Nf6 {[%emt 0:00:15]} 2. Nf3 {[%emt 0:00:09]} g6 {[%emt 0:00:14]} 3. g3 {[%emt 0:00:07]} Bg7 {[%emt 0:00:05]} 4. Bg2 {[%emt 0:00:10]} O-O {[%emt 0:00:10]} 5. O-O {[%emt 0:00:12]} d6 {[%emt 0:00:08]} 6. c4 {[%emt 0:00:10]} Nc6 {[%emt 0:01:23]} 7. Nc3 {[%emt 0:00:08]} e5 {[%emt 0:00:08]} 8. d5 {[%emt 0:03:02]} Ne7 {[%emt 0:00:08]} 9. h3 {[%emt 0:00:43]} h6 {[%emt 0:08:43]} 10. e4 {[%emt 0:01:07]} Ne8 {[%emt 0:02:31]} 11. Be3 {[%emt 0:01:23]} f5 {[%emt 0:03:04]} 12. Nh2 {[%emt 0:01:40]} Nf6 {[%emt 0:11:22]} 13. Rc1 {[%emt 0:02:44]} Nh5 {[%emt 0:09:58]} 14. Ne2 {[%emt 0:06:37]} Kh7 {[%emt 0:23:13]} 15. c5 {[%emt 0:01:01]} fxe4 {[%emt 0:08:47]} 16. cxd6 {[%emt 0:06:53]} cxd6 {[%emt 0:00:08]} 17. Nc3 {[%emt 0:03:55]} Nf6 {[%emt 0:00:05]} 18. Ng4 {[%emt 0:04:38]} Bxg4 {[%emt 0:13:46]} 19. hxg4 {[%emt 0:00:08]} Qa5 {[%emt 0:00:56]} 20. Nxe4 {[%emt 0:08:15]} Nfxd5 {[%emt 0:03:04]} 21. Nxd6 {[%emt 0:02:25]} Nxe3 {[%emt 0:00:17]} 22. fxe3 {[%emt 0:01:25]} Rxf1+ {[%emt 0:00:04]} 23. Qxf1 {[%emt 0:02:57]} Rf8 {[%emt 0:00:40]} 24. Qe2 {[%emt 0:07:27]} Qb4 {[%emt 0:02:12]} 25. Ne4 {[%emt 0:03:29]} Qb6 {[%emt 0:03:53]} 26. Rc5 {[%emt 0:05:11]} Nc6 {[%emt 0:02:40]} 27. b3 {[%emt 0:02:13]} Rf7 {[%emt 0:02:11]} 28. g5 {[%emt 0:02:35]} h5 {[%emt 0:04:25]} 29. Rb5 {[%emt 0:01:00]} Qd8 {[%emt 0:00:00]} 30. Rd5 {[%emt 0:03:43]} Qb6 {[%emt 0:00:00]} 31. Bf3 {[%emt 0:01:37]} Ne7 {[%emt 0:00:40]} 32. Rd6 {[%emt 0:00:44]} Qb4 {[%emt 0:00:08]} 33. Rd8 {[%emt 0:04:58]} Nf5 {[%emt 0:01:03]} 34. Kg2 {[%emt 0:04:31]} Qb6 {[%emt 0:00:07]} 35. Rd3 {[%emt 0:00:51]} Rc7 {[%emt 0:00:52]} 36. Bxh5 {[%emt 0:05:17]} Qc6 {[%emt 0:00:03]} 37. Bf3 {[%emt 0:00:58]} Qc1 {[%emt 0:00:01]} 38. Rd2 {[%emt 0:05:27]} Rc2 {[%emt 0:00:32]} 39. Kf2 {[%emt 0:03:01]} Rc7 {[%emt 0:01:05]} 40. Qd1 {[%emt 0:02:13]} Qa3 {[%emt 0:00:47]} 41. Qh1+ {[%emt 0:32:52]} Kg8 {[%emt 0:05:51]} 42. Nf6+ {[%emt 0:00:00]} Kf8 {[%emt 0:16:44]} 43. Qh7 {[%emt 0:00:00]} Bxf6 {[%emt 0:00:15]} 44. Qxc7 {[%emt 0:00:00]} Bxg5 {[%emt 0:00:07]} 45. Qc8+ {[%emt 0:00:00]} Kg7 {[%emt 0:01:00]} 46. Qxb7+ {[%emt 0:00:00]} Kh6 {[%emt 0:00:52]} 47. Re2 {[%emt 0:00:00]} Qc5 {[%emt 0:02:30]} 48. Qe4 {[%emt 0:00:00]} a5 {[%emt 0:03:00]} 49. Bg4 {[%emt 0:00:00]} Nd6 {[%emt 0:00:36]} 50. Qd3 {[%emt 0:00:00]} Nb5 {[%emt 0:01:23]} 51. Re1 {[%emt 0:00:00]} Nd6 {[%emt 0:00:55]} 52. Rd1 {[%emt 0:00:00]} Be7 {[%emt 0:01:29]} 53. Kg2 {[%emt 0:00:00]} e4 {[%emt 0:00:48]} 54. Qd4 {[%emt 0:00:00]} Qc2+ {[%emt 0:00:05]} 55. Rd2 {[%emt 0:00:00]} Qc1 {[%emt 0:00:12]} 56. Qh8+ {[%emt 0:00:00]} Kg5 {[%emt 0:00:02]} 57. Qh4# {[%emt 0:00:00]} 1-0

[Event "Niedersachsen-ch B 2024"]
[Site "Verden Aller"]
[Date "2024.01.07"]
[Round "7.5"]
[White "Berkenkamp, Matthis"]
[Black "Direk, Oguzhan"]
[Result "1/2-1/2"]
[ECO "A04"]
[WhiteElo "1425"]
[BlackElo "1657"]
[Annotator "NA RC"]
[PlyCount "86"]
[EventDate "2024.01.01"]
[EventType "swiss"]
[EventCountry "GER"]
[SourceTitle "playchess.com"]
[Source "ChessBase"]
[SourceQuality "1"]
[TimeControl "40/5400+30:1800+30"]

1. Nf3 {[%emt 0:00:10]} d5 {[%emt 0:00:25]} 2. g3 {[%emt 0:00:07]} e6 {[%emt 0:02:14]} 3. Bg2 {[%emt 0:00:29]} f5 {[%emt 0:00:08]} 4. O-O {[%emt 0:00:13]} Bd6 {[%emt 0:00:07]} 5. d3 {[%emt 0:00:33]} Nf6 {[%emt 0:00:07]} 6. b3 {[%emt 0:00:10]} Nbd7 {[%emt 0:02:04]} 7. Bb2 {[%emt 0:00:16]} e5 {[%emt 0:00:22]} 8. c4 {[%emt 0:02:47]} c6 {[%emt 0:03:41]} 9. Re1 {[%emt 0:01:27]} O-O {[%emt 0:01:32]} 10. e4 {[%emt 0:01:29]} Bb4 {[%emt 0:00:43]} 11. Bc3 {[%emt 0:01:06]} Bxc3 {[%emt 0:03:40]} 12. Nxc3 {[%emt 0:00:17]} d4 {[%emt 0:00:17]} 13. Nb1 {[%emt 0:01:07]} fxe4 {[%emt 0:00:59]} 14. Ng5 {[%emt 0:00:07]} Nc5 {[%emt 0:01:36]} 15. Nxe4 {[%emt 0:01:21]} Nfxe4 {[%emt 0:02:49]} 16. Bxe4 {[%emt 0:01:29]} Nxe4 {[%emt 0:00:05]} 17. Rxe4 {[%emt 0:00:12]} Qf6 {[%emt 0:00:44]} 18. f4 {[%emt 0:02:00]} exf4 {[%emt 0:02:52]} 19. Rxf4 {[%emt 0:00:30]} Qe5 {[%emt 0:00:26]} 20. Rxf8+ {[%emt 0:03:05]} Kxf8 {[%emt 0:03:12]} 21. Qf3+ {[%emt 0:00:52]} Kg8 {[%emt 0:00:17]} 22. Nd2 {[%emt 0:00:30]} Bh3 {[%emt 0:05:13]} 23. Qe4 {[%emt 0:06:53]} Qf6 {[%emt 0:02:34]} 24. Qf3 {[%emt 0:00:48]} Qh6 {[%emt 0:01:06]} 25. Qf4 {[%emt 0:02:59]} Qxf4 {[%emt 0:02:03]} 26. gxf4 {[%emt 0:00:32]} Rf8 {[%emt 0:02:55]} 27. Kf2 {[%emt 0:00:10]} Bf5 {[%emt 0:00:33]} 28. Nf3 {[%emt 0:00:21]} Bxd3 {[%emt 0:03:23]} 29. Nxd4 {[%emt 0:08:42]} Bg6 {[%emt 0:03:55]} 30. Ne6 {[%emt 0:12:46]} Rf6 {[%emt 0:55:28]} 31. Re1 {[%emt 0:00:30]} b6 {[%emt 0:00:00]} 32. Kg3 {[%emt 0:08:06]} h6 {[%emt 0:00:00]} 33. c5 {[%emt 0:01:14]} bxc5 {[%emt 0:00:00]} 34. Nxc5 {[%emt 0:00:41]} Rd6 {[%emt 0:00:00]} 35. Re6 {[%emt 0:02:03]} Rxe6 {[%emt 0:00:00]} 36. Nxe6 {[%emt 0:00:11]} Bf5 {[%emt 0:00:00]} 37. Nd4 {[%emt 0:01:26]} Bd7 {[%emt 0:00:00]} 38. b4 {[%emt 0:02:30]} Kf7 {[%emt 0:00:00]} 39. Kf3 {[%emt 0:11:01]} Ke7 {[%emt 0:00:00]} 40. Ke4 {[%emt 0:00:37]} Kf6 {[%emt 0:00:00]} 41. a3 {[%emt 0:36:32]} g5 {[%emt 0:00:00]} 42. fxg5+ {[%emt 0:00:12]} Kxg5 {[%emt 0:00:00]} 43. Nf3+ {[%emt 0:00:28]} Kf6 {[%emt 0:00:00]} 1/2-1/2

[Event "Niedersachsen-ch B 2024"]
[Site "Verden Aller"]
[Date "2024.01.07"]
[Round "7.8"]
[White "Ramme, Georg"]
[Black "Freise, Linus"]
[Result "0-1"]
[ECO "A80"]
[WhiteElo "1579"]
[BlackElo "1480"]
[Annotator "NA RC"]
[PlyCount "100"]
[EventDate "2024.01.01"]
[EventType "swiss"]
[EventCountry "GER"]
[SourceTitle "playchess.com"]
[Source "ChessBase"]
[SourceQuality "1"]
[TimeControl "40/5400+30:1800+30"]

1. Nf3 {[%emt 0:00:11]} f5 {[%emt 0:00:02]} 2. d4 {[%emt 0:02:49]} Nf6 {[%emt 0:00:06]} 3. Bf4 {[%emt 0:01:59]} e6 {[%emt 0:01:01]} 4. Nbd2 {[%emt 0:01:08]} Be7 {[%emt 0:02:14]} 5. e3 {[%emt 0:04:05]} d6 {[%emt 0:02:17]} 6. c3 {[%emt 0:02:49]} Nc6 {[%emt 0:02:58]} 7. Qb3 {[%emt 0:06:42]} Ne4 {[%emt 0:03:24]} 8. Bb5 {[%emt 0:05:59]} a6 {[%emt 0:07:38]} 9. Bd3 {[%emt 0:07:15]} d5 {[%emt 0:08:31]} 10. Ne5 {[%emt 0:05:45]} Nxe5 {[%emt 0:02:41]} 11. Bxe5 {[%emt 0:03:51]} Bd6 {[%emt 0:00:15]} 12. Nf3 {[%emt 0:00:20]} O-O {[%emt 0:00:51]} 13. g3 {[%emt 0:08:30]} Qe7 {[%emt 0:11:42]} 14. h4 {[%emt 0:05:37]} Bd7 {[%emt 0:01:41]} 15. Rh2 {[%emt 0:03:56]} b5 {[%emt 0:04:17]} 16. Ke2 {[%emt 0:03:33]} Be8 {[%emt 0:02:08]} 17. h5 {[%emt 0:09:26]} h6 {[%emt 0:00:09]} 18. Rah1 {[%emt 0:04:34]} Rb8 {[%emt 0:05:29]} 19. Qd1 {[%emt 0:03:32]} a5 {[%emt 0:01:27]} 20. Ke1 {[%emt 0:00:56]} a4 {[%emt 0:10:42]} 21. Bxe4 {[%emt 0:03:44]} fxe4 {[%emt 0:01:10]} 22. Bxd6 {[%emt 0:03:13]} cxd6 {[%emt 0:00:22]} 23. Nh4 {[%emt 0:00:16]} b4 {[%emt 0:04:14]} 24. Qg4 {[%emt 0:02:33]} bxc3 {[%emt 0:01:15]} 25. bxc3 {[%emt 0:00:36]} Rb1+ {[%emt 0:26:26]} 26. Kd2 {[%emt 0:00:20]} Rb2+ {[%emt 0:00:00]} 27. Ke1 {[%emt 0:00:43]} Qf6 {[%emt 0:00:00]} 28. f4 {[%emt 0:03:21]} Rb6 {[%emt 0:00:00]} 29. Rd2 {[%emt 0:01:52]} Bf7 {[%emt 0:00:00]} 30. Rhh2 {[%emt 0:02:33]} Rfb8 {[%emt 0:00:00]} 31. Kf2 {[%emt 0:00:31]} a3 {[%emt 0:00:00]} 32. Ke1 {[%emt 0:00:56]} Rb1+ {[%emt 0:00:00]} 33. Rd1 {[%emt 0:01:14]} R1b2 {[%emt 0:01:11]} 34. Rdd2 {[%emt 0:00:20]} Qd8 {[%emt 0:00:49]} 35. f5 {[%emt 0:01:08]} Qg5 {[%emt 0:01:02]} 36. Qxg5 {[%emt 0:00:34]} hxg5 {[%emt 0:00:49]} 37. Ng6 {[%emt 0:00:53]} Rxd2 {[%emt 0:01:06]} 38. Rxd2 {[%emt 0:00:20]} exf5 {[%emt 0:00:15]} 39. Ne7+ {[%emt 0:00:09]} Kf8 {[%emt 0:00:12]} 40. Nxf5 {[%emt 0:00:05]} Bxh5 {[%emt 0:01:01]} 41. Nxd6 {[%emt 0:04:42]} Ke7 {[%emt 0:04:18]} 42. Nf5+ {[%emt 0:01:53]} Kf6 {[%emt 0:01:45]} 43. Nd6 {[%emt 0:00:16]} Ke6 {[%emt 0:00:11]} 44. Nxe4 {[%emt 0:01:09]} dxe4 {[%emt 0:00:07]} 45. c4 {[%emt 0:00:19]} Rb2 {[%emt 0:01:23]} 46. c5 {[%emt 0:05:37]} Kd5 {[%emt 0:00:49]} 47. Rf2 {[%emt 0:00:31]} Bf3 {[%emt 0:05:44]} 48. Rd2 {[%emt 0:01:24]} Rb1+ {[%emt 0:01:46]} 49. Kf2 {[%emt 0:00:13]} Rc1 {[%emt 0:02:09]} 50. g4 {[%emt 0:04:51]} Rc3 {[%emt 0:01:14]} 0-1

[Event "Niedersachsen-ch B 2024"]
[Site "Verden Aller"]
[Date "2024.01.07"]
[Round "7.9"]
[White "Kesselhut, Pascal"]
[Black "Schumacher, Klaus"]
[Result "1-0"]
[ECO "B22"]
[WhiteElo "1425"]
[BlackElo "1724"]
[Annotator "NA RC"]
[PlyCount "65"]
[EventDate "2024.01.01"]
[EventType "swiss"]
[EventCountry "GER"]
[SourceTitle "playchess.com"]
[Source "ChessBase"]
[SourceQuality "1"]
[TimeControl "40/5400+30:1800+30"]

1. e4 {[%emt 0:00:03]} c5 {[%emt 0:00:07]} 2. c3 {[%emt 0:00:07]} Nc6 {[%emt 0:00:25]} 3. d4 {[%emt 0:00:21]} cxd4 {[%emt 0:00:12]} 4. cxd4 {[%emt 0:00:08]} d5 {[%emt 0:01:05]} 5. exd5 {[%emt 0:01:05]} Qxd5 {[%emt 0:00:11]} 6. Nf3 {[%emt 0:00:06]} Bg4 {[%emt 0:02:41]} 7. Nc3 {[%emt 0:00:48]} Qd7 {[%emt 0:00:58]} 8. d5 {[%emt 0:01:09]} Bxf3 {[%emt 0:04:02]} 9. gxf3 {[%emt 0:00:06]} O-O-O {[%emt 0:03:17]} 10. dxc6 {[%emt 0:02:08]} Qxc6 {[%emt 0:00:08]} 11. Qe2 {[%emt 0:02:23]} e5 {[%emt 0:03:55]} 12. Qc4 {[%emt 0:02:27]} Qxc4 {[%emt 0:03:23]} 13. Bxc4 {[%emt 0:00:07]} Bb4 {[%emt 0:01:03]} 14. Ke2 {[%emt 0:04:30]} Bxc3 {[%emt 0:02:13]} 15. bxc3 {[%emt 0:00:11]} f6 {[%emt 0:00:13]} 16. Be3 {[%emt 0:03:38]} Kb8 {[%emt 0:00:43]} 17. Rhd1 {[%emt 0:04:09]} Rc8 {[%emt 0:01:43]} 18. Be6 {[%emt 0:02:21]} Re8 {[%emt 0:02:16]} 19. Rd6 {[%emt 0:01:41]} Ne7 {[%emt 0:00:36]} 20. Rad1 {[%emt 0:07:35]} Nc8 {[%emt 0:01:17]} 21. Bxc8 {[%emt 0:01:38]} Rxc8 {[%emt 0:00:09]} 22. R1d3 {[%emt 0:01:05]} Rc4 {[%emt 0:00:59]} 23. Rd7 {[%emt 0:07:16]} g6 {[%emt 0:01:47]} 24. Rf7 {[%emt 0:02:59]} f5 {[%emt 0:01:21]} 25. Bd2 {[%emt 0:00:10]} Rh4 {[%emt 0:00:38]} 26. Rdd7 {[%emt 0:00:24]} Rxh2 {[%emt 0:00:24]} 27. Rxb7+ {[%emt 0:00:39]} Ka8 {[%emt 0:00:26]} 28. Rxa7+ {[%emt 0:04:40]} Kb8 {[%emt 0:00:08]} 29. Rae7 {[%emt 0:01:48]} h5 {[%emt 0:00:58]} 30. Rxe5 {[%emt 0:01:40]} Rh1 {[%emt 0:00:31]} 31. Bf4 {[%emt 0:00:28]} Kc8 {[%emt 0:00:29]} 32. Ra7 {[%emt 0:01:38]} Kb8 {[%emt 0:01:49]} 33. Ree7+ {[%emt 0:00:17]} 1-0

[Event "Niedersachsen-ch B 2024"]
[Site "Verden Aller"]
[Date "2024.01.07"]
[Round "7.10"]
[White "Weist, Hartmut"]
[Black "Schoettker, Jochen"]
[Result "0-1"]
[ECO "C06"]
[WhiteElo "1581"]
[BlackElo "1875"]
[Annotator "NA RC"]
[PlyCount "128"]
[EventDate "2024.01.01"]
[EventType "swiss"]
[EventCountry "GER"]
[SourceTitle "playchess.com"]
[Source "ChessBase"]
[SourceQuality "1"]
[TimeControl "40/5400+30:1800+30"]

1. e4 {[%emt 0:00:04]} e6 {[%emt 0:00:07]} 2. d4 {[%emt 0:00:31]} d5 {[%emt 0:00:04]} 3. Nd2 {[%emt 0:00:38]} Nf6 {[%emt 0:01:14]} 4. e5 {[%emt 0:00:23]} Nfd7 {[%emt 0:00:03]} 5. Bd3 {[%emt 0:01:29]} c5 {[%emt 0:00:11]} 6. c3 {[%emt 0:00:09]} b6 {[%emt 0:01:29]} 7. Ne2 {[%emt 0:01:25]} a5 {[%emt 0:00:11]} 8. O-O {[%emt 0:03:27]} Ba6 {[%emt 0:03:56]} 9. Bxa6 {[%emt 0:00:28]} Rxa6 {[%emt 0:00:32]} 10. a4 {[%emt 0:02:38]} Nc6 {[%emt 0:02:15]} 11. f4 {[%emt 0:01:36]} g6 {[%emt 0:00:52]} 12. Nf3 {[%emt 0:02:16]} Ra7 {[%emt 0:01:00]} 13. Be3 {[%emt 0:04:38]} h5 {[%emt 0:02:25]} 14. h4 {[%emt 0:05:57]} Ne7 {[%emt 0:00:52]} 15. Ng3 {[%emt 0:05:00]} Nc6 {[%emt 0:00:49]} 16. Ne2 {[%emt 0:05:02]} Be7 {[%emt 0:00:41]} 17. Bf2 {[%emt 0:04:46]} cxd4 {[%emt 0:04:48]} 18. Nexd4 {[%emt 0:02:06]} Nxd4 {[%emt 0:00:11]} 19. cxd4 {[%emt 0:05:08]} O-O {[%emt 0:00:47]} 20. Rc1 {[%emt 0:05:35]} Qb8 {[%emt 0:00:59]} 21. Qd3 {[%emt 0:10:28]} Rc8 {[%emt 0:00:32]} 22. Ng5 {[%emt 0:01:33]} Nf8 {[%emt 0:00:53]} 23. Qe3 {[%emt 0:03:42]} Rac7 {[%emt 0:00:22]} 24. Kh2 {[%emt 0:03:38]} Rc4 {[%emt 0:01:09]} 25. b3 {[%emt 0:01:17]} Rc2 {[%emt 0:00:08]} 26. Rxc2 {[%emt 0:01:37]} Rxc2 {[%emt 0:00:03]} 27. Rc1 {[%emt 0:00:38]} Qc7 {[%emt 0:00:01]} 28. Rxc2 {[%emt 0:00:49]} Qxc2 {[%emt 0:00:03]} 29. Be1 {[%emt 0:03:24]} Nd7 {[%emt 0:04:05]} 30. Qc3 {[%emt 0:01:34]} Qxc3 {[%emt 0:00:07]} 31. Bxc3 {[%emt 0:00:10]} Nb8 {[%emt 0:00:02]} 32. Nf3 {[%emt 0:06:29]} Kf8 {[%emt 0:00:23]} 33. g3 {[%emt 0:00:26]} Ke8 {[%emt 0:01:52]} 34. Kg2 {[%emt 0:00:09]} Kd7 {[%emt 0:01:02]} 35. Ne1 {[%emt 0:02:00]} Kc6 {[%emt 0:08:45]} 36. Kf3 {[%emt 0:02:26]} Kb7 {[%emt 0:01:14]} 37. Nc2 {[%emt 0:02:32]} Nc6 {[%emt 0:00:15]} 38. Ke2 {[%emt 0:01:44]} Ka6 {[%emt 0:00:27]} 39. Kd3 {[%emt 0:01:55]} b5 {[%emt 0:00:54]} 40. Ke2 {[%emt 0:06:34]} Na7 {[%emt 0:00:11]} 41. Kd3 {[%emt 0:30:44]} Nc8 {[%emt 0:30:01]} 42. Bb2 {[%emt 0:01:39]} Nb6 {[%emt 0:03:13]} 43. axb5+ {[%emt 0:01:42]} Kxb5 {[%emt 0:00:03]} 44. Bc3 {[%emt 0:00:00]} Nc8 {[%emt 0:00:00]} 45. Ke2 {[%emt 0:00:00]} Na7 {[%emt 0:00:00]} 46. Kd3 {[%emt 0:00:00]} Nc6 {[%emt 0:00:00]} 47. Ke2 {[%emt 0:00:00]} Bf8 {[%emt 0:00:00]} 48. Kf3 {[%emt 0:00:00]} a4 {[%emt 0:00:00]} 49. bxa4+ {[%emt 0:00:00]} Kxa4 {[%emt 0:00:00]} 50. Ke2 {[%emt 0:00:00]} Kb3 {[%emt 0:00:00]} 51. Kd3 {[%emt 0:00:00]} Nb4+ {[%emt 0:00:00]} 52. Bxb4 {[%emt 0:00:00]} Bxb4 {[%emt 0:00:00]} 53. Ne3 {[%emt 0:00:00]} Kb2 {[%emt 0:00:00]} 54. g4 {[%emt 0:00:00]} Be1 {[%emt 0:00:00]} 55. f5 {[%emt 0:00:00]} Bxh4 {[%emt 0:01:22]} 56. fxg6 {[%emt 0:00:00]} fxg6 {[%emt 0:00:13]} 57. gxh5 {[%emt 0:00:00]} gxh5 {[%emt 0:00:08]} 58. Nd1+ {[%emt 0:01:31]} Kb3 {[%emt 0:01:07]} 59. Ke2 {[%emt 0:02:23]} Kc4 {[%emt 0:00:52]} 60. Ne3+ {[%emt 0:02:25]} Kxd4 {[%emt 0:00:24]} 61. Ng2 {[%emt 0:00:34]} Bg5 {[%emt 0:00:27]} 62. Ne1 {[%emt 0:00:12]} Kxe5 {[%emt 0:00:25]} 63. Nd3+ {[%emt 0:01:17]} Kf5 {[%emt 0:00:12]} 64. Kf3 {[%emt 0:00:42]} e5 {[%emt 0:00:46]} 0-1

[Event "Niedersachsen-ch B 2024"]
[Site "Verden Aller"]
[Date "2024.01.07"]
[Round "7.11"]
[White "Nguyen, Laurentius"]
[Black "Woellermann, Ludger"]
[Result "1-0"]
[ECO "A04"]
[WhiteElo "1546"]
[BlackElo "1829"]
[Annotator "NA RC"]
[PlyCount "101"]
[EventDate "2024.01.01"]
[EventType "swiss"]
[EventCountry "GER"]
[SourceTitle "playchess.com"]
[Source "ChessBase"]
[SourceQuality "1"]
[TimeControl "40/5400+30:1800+30"]

1. e4 {[%emt 0:00:04]} c5 {[%emt 0:01:15]} 2. Nf3 {[%emt 0:00:15]} Nc6 {[%emt 0:01:06]} 3. d3 {[%emt 0:00:21]} g6 {[%emt 0:00:24]} 4. g3 {[%emt 0:00:09]} Bg7 {[%emt 0:00:12]} 5. Bg2 {[%emt 0:00:03]} e6 {[%emt 0:01:23]} 6. O-O {[%emt 0:01:56]} Nge7 {[%emt 0:00:30]} 7. Re1 {[%emt 0:00:36]} O-O {[%emt 0:00:58]} 8. a4 {[%emt 0:02:11]} d5 {[%emt 0:10:10]} 9. e5 {[%emt 0:03:34]} f6 {[%emt 0:12:52]} 10. Bf4 {[%emt 0:08:09]} fxe5 {[%emt 0:04:01]} 11. Nxe5 {[%emt 1:18:42]} Nxe5 {[%emt 0:05:07]} 12. Bxe5 {[%emt 0:00:00]} Bxe5 {[%emt 0:00:55]} 13. Rxe5 {[%emt 0:00:00]} Nc6 {[%emt 0:03:48]} 14. Re2 {[%emt 0:00:00]} Nd4 {[%emt 0:06:17]} 15. Re1 {[%emt 0:00:00]} Qf6 {[%emt 0:00:59]} 16. f4 {[%emt 0:00:00]} Bd7 {[%emt 0:06:35]} 17. c3 {[%emt 0:00:00]} Nf5 {[%emt 0:01:47]} 18. Nd2 {[%emt 0:00:00]} g5 {[%emt 0:06:20]} 19. Qg4 {[%emt 0:00:00]} Ng7 {[%emt 0:09:18]} 20. Qxg5 {[%emt 0:00:00]} Qxg5 {[%emt 0:02:01]} 21. fxg5 {[%emt 0:00:00]} Rf5 {[%emt 0:01:23]} 22. Nf3 {[%emt 0:00:00]} Bc6 {[%emt 0:01:03]} 23. h4 {[%emt 0:00:00]} Raf8 {[%emt 0:03:43]} 24. Rf1 {[%emt 0:00:00]} d4 {[%emt 0:02:55]} 25. Nh2 {[%emt 0:00:00]} Rxf1+ {[%emt 0:01:13]} 26. Nxf1 {[%emt 0:00:00]} dxc3 {[%emt 0:01:18]} 27. bxc3 {[%emt 0:00:00]} Bxg2 {[%emt 0:02:16]} 28. Kxg2 {[%emt 0:00:00]} Rd8 {[%emt 0:00:42]} 29. Rd1 {[%emt 0:00:00]} c4 {[%emt 0:00:40]} 30. d4 {[%emt 0:00:00]} Nf5 {[%emt 0:01:12]} 31. Kf3 {[%emt 0:00:00]} Rd6 {[%emt 0:00:43]} 32. Rb1 {[%emt 0:00:00]} Ra6 {[%emt 0:02:13]} 33. Rb4 {[%emt 0:00:00]} Nd6 {[%emt 0:01:16]} 34. Nd2 {[%emt 0:01:31]} b5 {[%emt 0:00:23]} 35. axb5 {[%emt 0:00:29]} Ra3 {[%emt 0:00:21]} 36. Nb1 {[%emt 0:03:56]} Ra2 {[%emt 0:00:44]} 37. b6 {[%emt 0:01:16]} axb6 {[%emt 0:01:07]} 38. Rxb6 {[%emt 0:00:08]} Nf5 {[%emt 0:01:21]} 39. Rxe6 {[%emt 0:00:41]} Rb2 {[%emt 0:00:18]} 40. Kf4 {[%emt 0:03:42]} Nxd4 {[%emt 0:09:41]} 41. cxd4 {[%emt 0:32:45]} Rxb1 {[%emt 0:27:04]} 42. Rc6 {[%emt 0:00:00]} Rc1 {[%emt 0:00:00]} 43. Kg4 {[%emt 0:00:00]} c3 {[%emt 0:00:00]} 44. Kh5 {[%emt 0:00:00]} c2 {[%emt 0:00:00]} 45. Kh6 {[%emt 0:00:00]} Rd1 {[%emt 0:00:00]} 46. Rxc2 {[%emt 0:00:00]} Rxd4 {[%emt 0:00:00]} 47. Rc8+ {[%emt 0:00:00]} Kf7 {[%emt 0:00:00]} 48. Kxh7 {[%emt 0:00:00]} Rd6 {[%emt 0:00:00]} 49. g6+ {[%emt 0:00:00]} Kf6 {[%emt 0:00:00]} 50. Rf8+ {[%emt 0:00:00]} Ke7 {[%emt 0:00:00]} 51. g7 {[%emt 0:00:00]} 1-0

[Event "Niedersachsen-ch B 2024"]
[Site "Verden Aller"]
[Date "2024.01.07"]
[Round "7.12"]
[White "Balazs, Kata"]
[Black "Pac, Maksym"]
[Result "1/2-1/2"]
[ECO "D31"]
[WhiteElo "1723"]
[BlackElo "1416"]
[Annotator "NA RC"]
[PlyCount "89"]
[EventDate "2024.01.01"]
[EventType "swiss"]
[EventCountry "GER"]
[SourceTitle "playchess.com"]
[Source "ChessBase"]
[SourceQuality "1"]
[TimeControl "40/5400+30:1800+30"]

1. d4 {[%emt 0:00:07]} d5 {[%emt 0:00:04]} 2. c4 {[%emt 0:00:15]} e6 {[%emt 0:00:10]} 3. Nc3 {[%emt 0:00:24]} c6 {[%emt 0:00:22]} 4. Nf3 {[%emt 0:00:23]} dxc4 {[%emt 0:00:04]} 5. e4 {[%emt 0:07:24]} b5 {[%emt 0:00:08]} 6. Be2 {[%emt 0:02:16]} Bb7 {[%emt 0:06:21]} 7. O-O {[%emt 0:01:12]} Nf6 {[%emt 0:05:17]} 8. Bg5 {[%emt 0:05:51]} Be7 {[%emt 0:03:51]} 9. e5 {[%emt 0:12:43]} Nd5 {[%emt 0:01:09]} 10. Bxe7 {[%emt 0:00:09]} Qxe7 {[%emt 0:17:57]} 11. Ne4 {[%emt 0:00:15]} O-O {[%emt 0:00:50]} 12. Nd6 {[%emt 0:03:02]} Nb6 {[%emt 0:08:00]} 13. Nd2 {[%emt 0:03:45]} f5 {[%emt 0:01:50]} 14. Qc2 {[%emt 0:02:00]} Nc8 {[%emt 0:02:42]} 15. Nxb7 {[%emt 0:00:33]} Qxb7 {[%emt 0:00:06]} 16. a4 {[%emt 0:01:42]} Ne7 {[%emt 0:04:08]} 17. b3 {[%emt 0:07:10]} cxb3 {[%emt 0:02:41]} 18. Qxb3 {[%emt 0:03:30]} Nd5 {[%emt 0:01:37]} 19. axb5 {[%emt 0:07:30]} Nd7 {[%emt 0:05:49]} 20. bxc6 {[%emt 0:40:19]} Qxc6 {[%emt 0:00:05]} 21. Rfc1 {[%emt 0:00:00]} Qb6 {[%emt 0:00:15]} 22. Qa4 {[%emt 0:00:00]} Qd8 {[%emt 0:03:00]} 23. Nc4 {[%emt 0:00:00]} N7b6 {[%emt 0:01:30]} 24. Qc6 {[%emt 0:00:00]} Nf4 {[%emt 0:06:39]} 25. Bf3 {[%emt 0:00:00]} Rc8 {[%emt 0:01:28]} 26. Qb5 {[%emt 0:00:00]} Qxd4 {[%emt 0:07:42]} 27. Nxb6 {[%emt 0:00:00]} axb6 {[%emt 0:03:25]} 28. Rd1 {[%emt 0:00:00]} Qc5 {[%emt 0:01:07]} 29. Rab1 {[%emt 0:00:00]} Qxb5 {[%emt 0:04:23]} 30. Rxb5 {[%emt 0:00:00]} Rc5 {[%emt 0:01:03]} 31. Rxb6 {[%emt 0:00:00]} Rxe5 {[%emt 0:00:29]} 32. g3 {[%emt 0:00:00]} Ng6 {[%emt 0:00:24]} 33. Rdd6 {[%emt 0:00:00]} Re1+ {[%emt 0:02:15]} 34. Kg2 {[%emt 0:00:00]} Re8 {[%emt 0:00:29]} 35. Bh5 {[%emt 0:00:00]} Re7 {[%emt 0:00:35]} 36. Bxg6 {[%emt 0:00:00]} hxg6 {[%emt 0:00:07]} 37. h4 {[%emt 0:01:22]} Kf7 {[%emt 0:00:40]} 38. Rd8 {[%emt 0:05:18]} Rc7 {[%emt 0:02:29]} 39. Rbb8 {[%emt 0:01:16]} Kf6 {[%emt 0:01:03]} 40. Rf8+ {[%emt 0:00:56]} Rf7 {[%emt 0:00:29]} 41. Rxf7+ {[%emt 0:05:18]} Kxf7 {[%emt 0:38:17]} 42. Kf3 {[%emt 0:02:10]} Re4 {[%emt 0:00:00]} 43. Rb7+ {[%emt 0:01:36]} Kf6 {[%emt 0:00:00]} 44. Rb8 {[%emt 0:00:33]} Kf7 {[%emt 0:00:00]} 45. Rb7+ {[%emt 0:00:08]} 1/2-1/2